bitfinex/quotes_SOLUSD_20220128
["timestamp","ask_amount","ask_price","bid_price","bid_amount"]
[1643370678514,38.99038646,88.599,88.52,16.29]
[1643370678717,6.0,88.594,88.5,16.29]
[1643370678914,6.0,88.589,88.489,16.13223401]
[1643370679112,6.0,88.589,88.474,26.61093268]
[1643370679113,6.0,88.588,88.474,23.4736]
[1643370679311,6.25,88.588,88.474,23.4736]
[1643370679515,6.0,88.583,88.492,31.5188821]
[1643370679712,6.0,88.583,88.474,23.4736]
[1643370679912,6.0,88.577,88.475,23.2644]
[1643370680317,0.25,88.576,88.476,31.44804557]
[1643370680513,16.956,88.57,88.476,31.44804557]
[1643370680714,16.956,88.57,88.477,28.11125613]
[1643370680920,38.99038646,88.559,88.478,0.25]
[1643370681119,6.0,88.549,88.478,0.25]
[1643370681315,0.25,88.548,88.478,0.25]
[1643370681517,6.0,88.539,88.478,0.25]
[1643370681915,0.25,88.538,88.478,0.25]
[1643370682916,41.23965145,88.549,88.478,0.25]
[1643370686118,0.25,88.549,88.478,0.25]
[1643370686319,0.25,88.559,88.478,0.25]
[1643370686521,0.25,88.559,88.479,20.9811091]
[1643370686721,0.25,88.573,88.48,16.29]
[1643370686923,0.25,88.563,88.48,53.40402478]
[1643370687123,34.96570401,88.572,88.481,34.72738719]
[1643370687326,34.96570401,88.572,88.491,11.96983979]
[1643370687523,34.96570401,88.572,88.492,46.9961]
[1643370687724,34.96570401,88.572,88.492,49.38273759]
[1643370687928,34.96570401,88.572,88.492,65.26565327]
[1643370688130,34.96570401,88.572,88.502,6.0]
[1643370688329,0.25,88.571,88.503,0.25]
[1643370688527,34.96570401,88.572,88.503,8.38663759]
[1643370688728,34.96570401,88.572,88.504,2.13663759]
[1643370688930,34.96570401,88.572,88.505,28.11125613]
[1643370689128,34.96570401,88.572,88.505,28.36125613]
[1643370689329,34.96570401,88.572,88.505,30.49789372]
[1643370689628,47.08,88.609,88.505,30.49789372]
[1643370690030,6.0,88.599,88.505,30.49789372]
[1643370690431,44.9467369,88.597,88.506,22.555]
[1643370690631,44.9467369,88.597,88.51,16.29]
[1643370690836,6.0,88.587,88.511,0.25]
[1643370691031,0.25,88.596,88.511,2.38663759]
[1643370691234,6.0,88.598,88.511,18.30754216]
[1643370691434,56.483,88.64,88.521,6.0]
[1643370691633,56.483,88.64,88.53,16.29]
[1643370691634,6.0,88.624,88.53,16.29]
[1643370691836,6.0,88.624,88.531,0.25]
[1643370692038,39.8191,88.634,88.531,0.25]
[1643370692240,6.0,88.614,88.531,58.57903979]
[1643370692440,37.04641465,88.623,88.532,2.13675535]
[1643370692638,6.25,88.613,88.532,2.13675535]
[1643370692840,0.25,88.612,88.533,0.25]
[1643370693541,0.25,88.612,88.531,46.3592]
[1643370694141,37.04641465,88.623,88.532,34.02776617]
[1643370694142,42.05248943,88.609,88.532,34.02776617]
[1643370694341,0.25,88.608,88.532,34.02776617]
[1643370694541,0.25,88.608,88.542,6.0]
[1643370694740,42.05248943,88.609,88.542,6.0]
[1643370694945,42.05248943,88.609,88.543,0.25]
[1643370696441,0.25,88.608,88.543,0.25]
[1643370696974,42.05248943,88.609,88.543,0.25]
[1643370697370,42.05248943,88.609,88.551,8.1900851]
[1643370697770,42.05248943,88.609,88.552,0.25]
[1643370698170,0.25,88.608,88.55,6.0]
[1643370698373,112.9,88.598,88.531,46.3592]
[1643370698572,6.0,88.588,88.531,46.3592]
[1643370698871,0.25,88.587,88.531,46.3592]
[1643370699071,0.25,88.587,88.532,0.25]
[1643370699273,36.41891359,88.587,88.532,37.58660132]
[1643370699675,36.41891359,88.587,88.5,16.29]
[1643370699875,6.0,88.577,88.505,24.7125]
[1643370700077,6.0,88.577,88.515,6.0]
[1643370700274,6.0,88.577,88.505,24.7125]
[1643370700275,0.25,88.576,88.505,24.7125]
[1643370700474,0.25,88.576,88.515,6.0]
[1643370700675,0.25,88.576,88.516,37.19156729]
[1643370701076,42.92999049,88.569,88.516,37.19156729]
[1643370701379,0.25,88.568,88.515,6.0]
[1643370701577,0.25,88.568,88.501,22.9104]
[1643370701578,6.0,88.559,88.49,16.29]
[1643370701775,0.25,88.558,88.48,22.7361]
[1643370701975,16.959,88.55,88.48,22.7361]
[1643370702375,36.16891359,88.539,88.481,34.07539621]
[1643370702578,6.0,88.529,88.481,34.07539621]
[1643370702776,0.25,88.528,88.482,0.25]
[1643370703781,40.23679195,88.549,88.482,0.25]
[1643370704183,6.0,88.539,88.482,0.25]
[1643370704384,0.25,88.538,88.482,0.25]
[1643370705382,0.25,88.538,88.471,0.25]
[1643370705581,6.25,88.538,88.471,0.25]
[1643370705781,6.25,88.538,88.465,0.25]
[1643370705983,6.25,88.538,88.47,6.0]
[1643370706182,6.25,88.538,88.471,39.83470226]
[1643370706382,39.98679195,88.549,88.471,42.22145761]
[1643370706583,39.98679195,88.549,88.472,22.9646]
[1643370706782,39.98679195,88.549,88.473,0.25]
[1643370707686,39.98679195,88.549,88.482,6.0]
[1643370707884,0.25,88.548,88.483,23.472]
[1643370708483,39.98679195,88.549,88.483,23.472]
[1643370709686,39.98679195,88.549,88.493,6.0]
[1643370709884,0.25,88.548,88.494,0.25]
[1643370710288,0.25,88.548,88.493,6.0]
[1643370710789,0.25,88.548,88.483,23.222]
[1643370710989,0.25,88.548,88.493,6.0]
[1643370711188,23.2177,88.576,88.493,6.0]
[1643370711389,0.25,88.575,88.494,46.6406]
[1643370711590,0.25,88.575,88.494,48.77735535]
[1643370711897,0.25,88.575,88.495,2.13675535]
[1643370712088,6.0,88.566,88.505,6.0]
[1643370712288,0.25,88.565,88.505,6.0]
[1643370712489,6.25,88.565,88.494,46.6406]
[1643370712689,6.0,88.565,88.494,46.6406]
[1643370712891,42.18210924,88.575,88.494,46.6406]
[1643370713090,16.955,88.57,88.495,0.25]
[1643370713694,42.18210924,88.575,88.495,0.25]
[1643370713892,42.18210924,88.575,88.504,6.0]
[1643370714093,6.0,88.565,88.505,24.3431]
[1643370714293,0.25,88.564,88.505,24.5931]
[1643370715097,112.15,88.671,88.506,2.13675535]
[1643370715295,24.1154,88.607,88.516,112.9]
[1643370715502,6.0,88.598,88.53,16.29]
[1643370715714,24.1154,88.607,88.53,16.29]
[1643370715915,24.1154,88.607,88.531,0.25]
[1643370716114,24.1154,88.607,88.531,23.8527]
[1643370716716,0.25,88.606,88.531,23.8527]
[1643370717517,0.25,88.606,88.541,6.0]
[1643370717717,0.25,88.606,88.542,25.0146]
[1643370719119,0.25,88.606,88.552,6.0]
[1643370719321,0.25,88.606,88.553,0.25]
[1643370719518,6.0,88.599,88.553,0.25]
[1643370719718,0.25,88.608,88.553,0.25]
[1643370719922,42.60771495,88.588,88.553,0.25]
[1643370720319,0.25,88.587,88.553,0.25]
[1643370720523,0.25,88.587,88.533,0.25]
[1643370723621,6.0,88.578,88.533,0.25]
[1643370723822,0.25,88.577,88.53,16.29]
[1643370724023,0.25,88.577,88.508,23.8325]
[1643370724224,0.25,88.577,88.509,0.25]
[1643370724422,0.25,88.577,88.511,6.0]
[1643370724623,6.25,88.577,88.509,0.25]
[1643370725224,119.15,88.577,88.509,0.25]
[1643370725423,119.15,88.577,88.491,24.5687]
[1643370726228,6.25,88.577,88.491,24.5687]
[1643370726431,36.49118913,88.569,88.491,24.5687]
[1643370726630,6.0,88.559,88.491,24.3187]
[1643370726830,0.25,88.558,88.472,22.8779]
[1643370727029,0.25,88.558,88.482,6.0]
[1643370727232,16.959,88.55,88.482,6.0]
[1643370727433,39.9359856,88.549,88.482,6.0]
[1643370727631,6.0,88.539,88.482,6.0]
[1643370727831,0.25,88.538,88.472,22.8779]
[1643370728631,0.25,88.538,88.473,0.25]
[1643370729433,16.955,88.57,88.474,14.74267124]
[1643370729633,6.0,88.558,88.484,6.0]
[1643370729833,0.25,88.557,88.485,22.8074]
[1643370730232,0.25,88.557,88.486,14.74267124]
[1643370730637,0.25,88.557,88.496,6.0]
[1643370730841,0.25,88.557,88.497,24.2259]
[1643370731035,0.25,88.564,88.497,24.2259]
[1643370731238,0.25,88.574,88.497,24.2259]
[1643370731440,0.25,88.574,88.497,23.9759]
[1643370731642,6.0,88.565,88.498,0.25]
[1643370731838,0.25,88.564,88.498,0.25]
[1643370732037,0.25,88.564,88.507,6.0]
[1643370732642,6.0,88.565,88.507,6.0]
[1643370732839,77.6372,88.609,88.51,16.29]
[1643370733039,77.6372,88.609,88.511,46.4452]
[1643370733239,77.6372,88.609,88.511,46.6952]
[1643370733441,77.6372,88.609,88.511,61.43787124]
[1643370733638,48.15129611,88.59,88.511,61.43787124]
[1643370733841,48.15129611,88.59,88.521,6.0]
[1643370734044,0.25,88.589,88.521,6.0]
[1643370734241,0.25,88.589,88.522,0.25]
[1643370734642,0.25,88.589,88.521,6.0]
[1643370734842,48.15129611,88.59,88.522,0.25]
[1643370735041,48.15129611,88.59,88.53,6.0]
[1643370735643,112.9,88.589,88.53,6.0]
[1643370735946,118.9,88.579,88.49,16.29]
[1643370736342,118.9,88.579,88.491,0.25]
[1643370736343,0.25,88.578,88.491,0.25]
[1643370737345,0.25,88.578,88.491,23.8371]
[1643370737545,143.84760797,88.569,88.491,23.5871]
[1643370737746,149.84760797,88.569,88.492,0.25]
[1643370737946,0.25,88.568,88.492,0.25]
[1643370738146,6.0,88.559,88.492,0.25]
[1643370738347,0.25,88.558,88.492,0.25]
[1643370739548,113.15,88.558,88.492,0.25]
[1643370740048,46.22503357,88.546,88.492,0.25]
[1643370740252,112.9,88.545,88.492,0.25]
[1643370740451,113.15,88.545,88.492,0.25]
[1643370740653,6.0,88.535,88.492,0.25]
[1643370740851,0.25,88.534,88.492,0.25]
[1643370741653,0.25,88.534,88.491,23.5871]
[1643370742784,0.25,88.534,88.492,0.25]
[1643370743786,0.25,88.535,88.492,0.25]
[1643370744890,0.25,88.535,88.479,0.25]
[1643370745087,6.25,88.535,88.479,0.25]
[1643370747690,6.25,88.535,88.478,10.37798505]
[1643370747891,6.25,88.535,88.477,23.1447]
[1643370748091,112.9,88.534,88.477,23.1447]
[1643370748290,0.25,88.533,88.477,23.1447]
[1643370748491,32.87387051,88.523,88.477,23.1447]
[1643370748890,6.0,88.513,88.477,23.1447]
[1643370749091,32.87387051,88.523,88.478,0.25]
[1643370749293,6.0,88.513,88.478,0.25]
[1643370749494,112.9,88.538,88.477,23.1447]
[1643370749692,6.0,88.528,88.47,16.29]
[1643370749892,6.0,88.528,88.458,23.9927]
[1643370750594,112.9,88.527,88.444,24.1707]
[1643370750894,37.14136209,88.526,88.445,37.97925041]
[1643370751096,6.0,88.516,88.445,37.97925041]
[1643370751297,0.25,88.515,88.445,37.72925041]
[1643370751495,6.0,88.51,88.445,37.72925041]
[1643370751696,41.95754199,88.509,88.445,37.72925041]
[1643370751894,42.20754199,88.509,88.445,37.72925041]
[1643370752093,6.0,88.499,88.445,37.72925041]
[1643370752293,0.25,88.498,88.445,37.72925041]
[1643370753494,0.25,88.498,88.416,24.3764]
[1643370753695,6.25,88.498,88.423,2.13658603]
[1643370753896,6.25,88.498,88.433,6.0]
[1643370754094,6.25,88.498,88.424,0.25]
[1643370754095,6.0,88.497,88.426,6.0]
[1643370754295,6.0,88.488,88.427,0.25]
[1643370754497,37.14136209,88.487,88.427,30.10024611]
[1643370754695,0.25,88.487,88.428,37.80396957]
[1643370754896,0.25,88.496,88.437,6.0]
[1643370755097,16.963,88.53,88.446,6.0]
[1643370755296,16.963,88.53,88.447,24.0063]
[1643370755495,16.963,88.53,88.448,1.56631483]
[1643370755697,36.54200347,88.529,88.457,6.0]
[1643370755896,36.54200347,88.529,88.458,6.0]
[1643370756096,16.964,88.52,88.447,1.56631483]
[1643370756295,112.9,88.519,88.44,1.56631483]
[1643370756500,6.0,88.51,88.427,1.56631483]
[1643370756697,112.9,88.508,88.415,1.56631483]
[1643370756897,24.8459,88.507,88.412,1.56631483]
[1643370757199,6.0,88.497,88.411,1.56631483]
[1643370757500,113.15,88.496,88.399,1.56631483]
[1643370757698,122.10669142,88.496,88.399,1.56631483]
[1643370757898,112.9,88.489,88.399,1.56631483]
[1643370758099,6.0,88.479,88.4,1.56631483]
[1643370758299,16.974,88.47,88.398,1.56631483]
[1643370758499,16.974,88.47,88.391,1.56631483]
[1643370758700,35.44571322,88.459,88.388,1.56631483]
[1643370758899,0.25,88.458,88.388,1.56631483]
[1643370759102,6.0,88.449,88.388,1.56631483]
[1643370759299,6.0,88.449,88.382,46.043]
[1643370759300,0.25,88.448,88.387,1.56631483]
[1643370759600,6.25,88.448,88.387,1.56631483]
[1643370759800,6.25,88.448,88.388,1.56631483]
[1643370760200,6.25,88.448,88.384,1.56631483]
[1643370760402,6.0,88.44,88.384,1.56631483]
[1643370760601,6.0,88.438,88.384,1.56631483]
[1643370760903,0.25,88.437,88.385,1.56631483]
[1643370761104,16.975,88.48,88.386,0.25]
[1643370761303,0.25,88.469,88.386,0.25]
[1643370761502,6.0,88.468,88.386,0.25]
[1643370761904,6.0,88.468,88.39,1.56631483]
[1643370762104,34.86578738,88.467,88.391,1.56631483]
[1643370762304,34.86578738,88.467,88.392,0.25]
[1643370762705,34.86578738,88.467,88.391,1.56631483]
[1643370762706,0.25,88.466,88.391,1.56631483]
[1643370762909,6.0,88.457,88.391,1.56631483]
[1643370763106,6.0,88.456,88.372,1.56631483]
[1643370763308,30.6632,88.456,88.367,1.56631483]
[1643370763508,121.85669142,88.455,88.362,1.56631483]
[1643370763708,121.85669142,88.455,88.362,6.0]
[1643370763908,6.0,88.446,88.361,6.0]
[1643370764214,6.0,88.444,88.362,0.25]
[1643370764407,16.981,88.44,88.364,6.0]
[1643370764610,6.0,88.43,88.362,0.25]
[1643370764808,35.11578738,88.429,88.358,0.25]
[1643370765011,6.0,88.419,88.356,1.56631483]
[1643370765210,6.0,88.419,88.35,1.56631483]
[1643370765509,0.25,88.418,88.338,1.56631483]
[1643370765910,0.25,88.418,88.353,28.84124326]
[1643370766111,23.6522,88.445,88.353,28.84124326]
[1643370766312,0.25,88.444,88.355,1.56631483]
[1643370766510,0.25,88.444,88.365,6.0]
[1643370766714,16.98,88.44,88.363,6.0]
[1643370766910,0.25,88.439,88.37,6.0]
[1643370767113,47.1282308,88.439,88.371,11.23985266]
[1643370767511,47.1282308,88.439,88.37,6.0]
[1643370767912,6.0,88.429,88.37,6.0]
[1643370768113,6.0,88.42,88.364,0.25]
[1643370768340,0.25,88.419,88.364,0.25]
[1643370768532,32.47067328,88.419,88.364,0.25]
[1643370769633,32.47067328,88.419,88.354,0.25]
[1643370770034,32.47067328,88.419,88.363,6.0]
[1643370770433,32.47067328,88.419,88.364,0.25]
[1643370770635,32.47067328,88.419,88.354,0.25]
[1643370771034,32.47067328,88.419,88.363,6.0]
[1643370771233,32.47067328,88.419,88.354,0.25]
[1643370771433,32.47067328,88.419,88.364,0.25]
[1643370771633,32.47067328,88.419,88.354,0.25]
[1643370772139,32.47067328,88.419,88.363,6.0]
[1643370772334,32.22067328,88.419,88.364,0.25]
[1643370772639,0.25,88.418,88.364,0.25]
[1643370773036,6.0,88.409,88.365,6.0]
[1643370773334,0.25,88.408,88.365,6.0]
[1643370773533,0.25,88.408,88.364,0.25]
[1643370773734,0.25,88.408,88.354,0.25]
[1643370773934,0.25,88.408,88.364,0.25]
[1643370774137,0.25,88.408,88.363,6.0]
[1643370774335,0.25,88.408,88.364,0.25]
[1643370774737,32.22067328,88.419,88.364,0.25]
[1643370775337,0.25,88.418,88.363,6.0]
[1643370775736,0.25,88.418,88.364,0.25]
[1643370775936,0.25,88.418,88.363,6.0]
[1643370775937,0.25,88.418,88.352,46.0412]
[1643370776143,0.25,88.418,88.346,1.56631483]
[1643370776337,6.0,88.409,88.331,1.56631483]
[1643370776540,6.0,88.409,88.332,1.56631483]
[1643370776737,0.25,88.408,88.34,6.0]
[1643370776941,0.25,88.408,88.341,37.62965714]
[1643370776942,6.25,88.408,88.341,37.62965714]
[1643370777140,6.25,88.408,88.342,24.7608]
[1643370777342,1.56483079,88.485,88.352,6.0]
[1643370777638,1.56483079,88.494,88.36,16.29]
[1643370777839,1.56483079,88.514,88.363,1.56631483]
[1643370778038,47.8933,88.524,88.379,1.56631483]
[1643370778240,47.8933,88.524,88.39,16.29]
[1643370778241,42.08777806,88.523,88.39,16.29]
[1643370778439,42.08777806,88.523,88.391,46.9046]
[1643370778639,16.971,88.51,88.401,6.0]
[1643370778841,37.01112602,88.509,88.41,16.29]
[1643370779038,6.0,88.499,88.41,16.29]
[1643370779838,112.9,88.498,88.41,16.29]
[1643370780042,6.0,88.488,88.41,16.29]
[1643370780241,36.76124376,88.487,88.41,16.29]
[1643370780641,6.0,88.477,88.41,16.29]
[1643370780841,0.25,88.476,88.41,16.29]
[1643370781040,41.84776058,88.469,88.411,0.25]
[1643370781539,0.25,88.468,88.41,16.29]
[1643370784048,0.25,88.468,88.411,0.25]
[1643370785649,0.25,88.468,88.41,16.29]
[1643370785849,0.25,88.468,88.411,0.25]
[1643370786851,6.0,88.459,88.411,0.25]
[1643370787050,6.0,88.459,88.404,0.25]
[1643370787251,0.25,88.458,88.404,0.25]
[1643370787856,0.25,88.458,88.404,38.1210847]
[1643370788257,0.25,88.468,88.404,38.1210847]
[1643370790155,0.25,88.468,88.414,6.0]
[1643370790355,0.25,88.468,88.415,0.25]
[1643370790755,0.25,88.468,88.415,25.2089]
[1643370791056,6.0,88.489,88.415,25.2089]
[1643370791268,0.25,88.488,88.415,25.2089]
[1643370791457,49.62278013,88.488,88.415,25.2089]
[1643370791658,6.0,88.478,88.415,25.2089]
[1643370791857,0.25,88.477,88.415,25.2089]
[1643370792256,6.0,88.468,88.415,25.2089]
[1643370792458,0.25,88.477,88.415,25.2089]
[1643370792659,0.25,88.467,88.415,25.2089]
[1643370792856,6.25,88.477,88.415,25.2089]
[1643370793057,0.25,88.477,88.415,25.2089]
[1643370794859,0.25,88.479,88.415,25.2089]
[1643370795262,16.974,88.47,88.415,25.2089]
[1643370795760,0.25,88.469,88.415,25.2089]
[1643370798262,0.25,88.469,88.415,24.9589]
[1643370798864,0.25,88.469,88.414,6.0]
[1643370799065,0.25,88.469,88.404,6.0]
[1643370799464,0.25,88.469,88.402,31.62848935]
[1643370799665,0.25,88.469,88.412,6.0]
[1643370800266,0.25,88.469,88.413,0.25]
[1643370800667,6.0,88.477,88.413,0.25]
[1643370800866,0.25,88.476,88.4,1.56631483]
[1643370801267,16.974,88.47,88.385,1.56631483]
[1643370801467,22.974,88.47,88.374,1.56631483]
[1643370801668,6.0,88.465,88.367,1.56631483]
[1643370801867,29.72612395,88.459,88.367,31.20917845]
[1643370802094,35.72612395,88.459,88.376,1.56631483]
[1643370802393,0.25,88.458,88.379,1.56631483]
[1643370802593,0.25,88.458,88.377,6.0]
[1643370802794,0.25,88.458,88.378,6.25]
[1643370802996,0.25,88.458,88.378,0.25]
[1643370803394,0.25,88.458,88.376,1.31631483]
[1643370803595,0.25,88.458,88.369,23.9828]
[1643370803995,23.6132,88.458,88.369,23.9828]
[1643370804195,16.978,88.45,88.369,23.9828]
[1643370804397,6.0,88.448,88.37,30.77198573]
[1643370804596,6.0,88.44,88.37,30.77198573]
[1643370804796,0.25,88.439,88.37,30.77198573]
[1643370805396,0.25,88.439,88.371,0.25]
[1643370805598,6.25,88.439,88.371,0.25]
[1643370806001,6.0,88.43,88.371,0.25]
[1643370806199,6.0,88.429,88.37,0.25]
[1643370806399,0.25,88.429,88.37,0.25]
[1643370807100,42.92093086,88.429,88.37,0.25]
[1643370808601,42.92093086,88.429,88.369,23.9828]
[1643370808802,42.92093086,88.429,88.37,0.25]
[1643370809602,42.92093086,88.429,88.369,23.9828]
[1643370812308,42.92093086,88.429,88.37,0.25]
[1643370812517,42.92093086,88.429,88.369,23.7328]
[1643370814813,0.25,88.429,88.37,0.25]
[1643370815011,0.25,88.429,88.379,6.0]
[1643370815212,0.25,88.438,88.38,16.29]
[1643370815414,0.25,88.446,88.38,22.54]
[1643370815614,0.25,88.446,88.381,8.13898321]
[1643370815915,48.84867912,88.459,88.391,8.439746]
[1643370816113,48.84867912,88.459,88.401,6.0]
[1643370816313,48.84867912,88.459,88.402,0.25]
[1643370816915,48.84867912,88.459,88.401,6.0]
[1643370818315,48.84867912,88.459,88.4,16.29]
[1643370819113,6.0,88.449,88.4,16.29]
[1643370819313,0.25,88.448,88.38,16.29]
[1643370819915,6.25,88.448,88.38,16.29]
[1643370820113,6.0,88.44,88.38,16.29]
[1643370820314,0.25,88.439,88.38,16.29]
[1643370820915,0.25,88.439,88.36,16.29]
[1643370820916,2.95669142,88.438,88.36,16.29]
[1643370821122,6.0,88.428,88.34,16.29]
[1643370821316,30.75022496,88.427,88.34,54.78970866]
[1643370821519,6.0,88.417,88.34,54.78970866]
[1643370822015,16.976,88.46,88.35,22.475]
[1643370822217,16.976,88.46,88.36,16.29]
[1643370822417,16.976,88.46,88.361,0.25]
[1643370822617,16.976,88.46,88.361,13.5717102]
[1643370822816,45.49616384,88.459,88.362,2.13898321]
[1643370823018,16.977,88.45,88.363,23.9255]
[1643370823217,16.977,88.45,88.373,1.58138726]
[1643370823418,16.977,88.45,88.373,7.58138726]
[1643370823622,6.0,88.44,88.373,1.58138726]
[1643370823819,0.25,88.439,88.373,1.58138726]
[1643370824420,6.0,88.435,88.373,1.58138726]
[1643370824621,6.0,88.434,88.373,1.58138726]
[1643370824820,6.25,88.434,88.373,1.58138726]
[1643370826226,6.25,88.434,88.363,35.10822699]
[1643370826424,6.0,88.43,88.363,23.9255]
[1643370826622,6.0,88.424,88.363,23.9255]
[1643370826921,0.25,88.423,88.363,23.9255]
[1643370827121,16.983,88.42,88.363,23.9255]
[1643370827322,16.983,88.42,88.351,24.2749]
[1643370827323,33.85274024,88.419,88.351,24.2749]
[1643370827522,6.0,88.409,88.351,24.2749]
[1643370827921,0.25,88.408,88.351,24.2749]
[1643370828123,9.49,88.408,88.351,24.2749]
[1643370828547,6.0,88.398,88.351,24.2749]
[1643370828948,0.25,88.397,88.351,24.2749]
[1643370829549,6.0,88.39,88.351,24.2749]
[1643370829749,44.75616137,88.389,88.351,24.2749]
[1643370829951,45.00616137,88.389,88.32,2.13914422]
[1643370830149,6.0,88.379,88.311,23.6377]
[1643370830352,0.25,88.378,88.311,23.6377]
[1643370831050,6.25,88.378,88.311,23.6377]
[1643370831451,6.0,88.37,88.311,23.6377]
[1643370831653,6.0,88.37,88.312,0.25]
[1643370831852,0.25,88.369,88.312,0.25]
[1643370832250,0.25,88.369,88.312,2.38499924]
[1643370832452,0.25,88.369,88.312,2.13499924]
[1643370832650,0.25,88.369,88.311,23.6377]
[1643370832850,16.991,88.38,88.311,23.6377]
[1643370832851,0.25,88.377,88.311,23.6377]
[1643370833253,0.25,88.379,88.311,23.6377]
[1643370835256,0.25,88.379,88.312,0.25]
[1643370836360,0.25,88.388,88.312,0.25]
[1643370837760,6.0,88.379,88.312,0.25]
[1643370838161,0.25,88.378,88.311,23.6377]
[1643370840164,0.25,88.388,88.311,23.6377]
[1643370840362,6.0,88.379,88.311,23.6377]
[1643370840764,44.75616137,88.389,88.312,0.25]
[1643370840964,44.75616137,88.389,88.321,6.0]
[1643370841165,44.75616137,88.389,88.33,16.29]
[1643370841366,44.75616137,88.389,88.331,0.25]
[1643370841567,44.75616137,88.389,88.34,6.0]
[1643370841764,44.75616137,88.389,88.341,0.25]
[1643370843766,0.25,88.388,88.341,0.25]
[1643370844367,16.986,88.41,88.341,0.25]
[1643370844570,16.982,88.43,88.342,2.13499924]
[1643370844768,24.9706,88.448,88.343,0.25]
[1643370844969,2.95669142,88.468,88.352,6.0]
[1643370845170,2.95669142,88.468,88.36,16.29]
[1643370845469,16.976,88.46,88.361,25.1117]
[1643370845669,38.6466481,88.467,88.37,6.0]
[1643370845870,38.6466481,88.467,88.371,30.3657]
[1643370846069,38.6466481,88.467,88.38,16.29]
[1643370846271,38.6466481,88.467,88.39,6.0]
[1643370846471,38.6466481,88.467,88.4,16.29]
[1643370846871,38.6466481,88.467,88.401,0.25]
[1643370847272,0.25,88.466,88.401,0.25]
[1643370847472,0.25,88.466,88.41,6.0]
[1643370847871,38.6466481,88.467,88.401,0.25]
[1643370848673,38.6466481,88.467,88.4,16.29]
[1643370848872,6.0,88.457,88.392,23.2537]
[1643370849075,16.978,88.45,88.37,16.29]
[1643370849279,0.25,88.449,88.37,16.29]
[1643370849674,40.45225598,88.439,88.37,16.29]
[1643370849875,0.25,88.438,88.371,24.8987]
[1643370850278,0.25,88.438,88.372,0.25]
[1643370853581,6.0,88.429,88.372,0.25]
[1643370853882,0.25,88.428,88.372,0.25]
[1643370855106,0.25,88.438,88.372,0.25]
[1643370855811,0.25,88.438,88.373,2.1350904]
[1643370856012,56.578,88.49,88.383,6.0]
[1643370856213,24.6124,88.495,88.39,16.29]
[1643370856411,6.0,88.48,88.391,0.25]
[1643370856611,0.25,88.489,88.4,6.0]
[1643370856612,6.0,88.485,88.4,6.0]
[1643370856813,0.25,88.479,88.41,16.29]
[1643370857013,16.973,88.47,88.41,16.29]
[1643370858613,0.25,88.469,88.41,16.29]
[1643370859616,6.0,88.46,88.41,16.29]